fUSD/lending_fUSD_20250609
["ID","MTS","AMOUNT","RATE_DAILY","PERIOD"]
[365050336,1749427843943,-428.3246674,0.00018694,2]
[365050338,1749427843953,-480.0,0.00018694,2]
[365050339,1749427843962,-480.0,0.00018694,2]
[365050340,1749427843971,-480.0,0.00018694,2]
[365050341,1749427843980,-480.0,0.00018694,2]
[365050342,1749427843990,-480.0,0.00018694,2]
[365050343,1749427843999,-300.0,0.00018694,2]
[365050344,1749427844008,-425.23066411,0.00018694,2]
[365050345,1749427844017,-480.0,0.00018694,2]
[365050346,1749427844027,-410.59199187,0.00018694,2]
[365050347,1749427844036,-516.58,0.00018694,2]
[365050348,1749427844045,-480.0,0.00018694,2]
[365050349,1749427844054,-480.0,0.00018694,2]
[365050350,1749427844063,-480.0,0.00018694,2]
[365050351,1749427844072,-480.0,0.00018694,2]
[365050352,1749427844082,-500.0,0.00018694,2]
[365050354,1749427844091,-538.68,0.00018694,2]
[365050355,1749427844100,-480.0,0.00018694,2]
[365050357,1749427844111,-480.0,0.00018694,2]
[365050359,1749427844120,-480.0,0.00018694,2]
[365050361,1749427844129,-480.0,0.00018694,2]
[365050363,1749427844137,-480.0,0.00018694,2]
[365050365,1749427844147,-480.0,0.00018694,2]
[365050367,1749427844158,-1954.47,0.00018694,2]
[365050369,1749427844167,-480.0,0.00018694,2]
[365050371,1749427844176,-459.84771952,0.00018694,2]
[365050373,1749427844185,-480.0,0.00018694,2]
[365050375,1749427844194,-480.0,0.00018694,2]
[365050377,1749427844202,-620.00636597,0.00018694,2]
[365050379,1749427844211,-480.0,0.00018694,2]
[365050381,1749427844221,-480.0,0.00018694,2]
[365050382,1749427844230,-480.0,0.00018694,2]
[365050384,1749427844239,-480.0,0.00018694,2]
[365050386,1749427844248,-480.0,0.00018694,2]
[365050388,1749427844258,-480.0,0.00018694,2]
[365050390,1749427844267,-480.0,0.00018694,2]
[365050392,1749427844276,-480.0,0.00018694,2]
[365050394,1749427844285,-480.0,0.00018694,2]
[365050396,1749427844294,-420.0,0.00018694,2]
[365050398,1749427844303,-480.0,0.00018694,2]
[365050400,1749427844312,-480.0,0.00018694,2]
[365050402,1749427844321,-480.0,0.00018694,2]
[365050404,1749427844331,-480.0,0.00018694,2]
[365050406,1749427844340,-480.0,0.00018694,2]
[365050408,1749427844350,-480.0,0.00018694,2]
[365050410,1749427844359,-480.0,0.00018694,2]
[365050412,1749427844368,-480.0,0.00018694,2]
[365050413,1749427844378,-480.0,0.00018694,2]
[365050415,1749427844388,-480.0,0.00018694,2]
[365050417,1749427844397,-480.0,0.00018694,2]
[365050419,1749427844406,-480.0,0.00018694,2]
[365050421,1749427844415,-480.0,0.00018694,2]
[365050423,1749427844424,-480.0,0.00018694,2]
[365050425,1749427844433,-480.0,0.00018694,2]
[365050427,1749427844443,-480.0,0.00018694,2]
[365050429,1749427844452,-480.0,0.00018694,2]
[365050431,1749427844460,-480.0,0.00018694,2]
[365050433,1749427844470,-433.32287394,0.00018694,2]
[365050435,1749427844479,-480.0,0.00018694,2]
[365050437,1749427844488,-480.0,0.00018694,2]
[365050439,1749427844497,-648.05,0.00018694,2]
[365050441,1749427844506,-426.808738,0.00018694,2]
[365050443,1749427844515,-480.0,0.00018694,2]
[365050444,1749427844524,-672.63,0.00018694,2]
[365050446,1749427844533,-480.0,0.00018694,2]
[365050448,1749427844542,-480.0,0.00018694,2]
[365050450,1749427844551,-480.0,0.00018694,2]
[365050452,1749427844560,-480.0,0.00018694,2]
[365050454,1749427844569,-480.0,0.00018694,2]
[365050456,1749427844579,-666.1,0.00018694,2]
[365050458,1749427844588,-553.54556716,0.00018694,2]
[365050460,1749427844598,-480.0,0.00018694,2]
[365050462,1749427844607,-480.0,0.00018694,2]
[365050464,1749427844616,-480.0,0.00018694,2]
[365050466,1749427844626,-480.0,0.00018694,2]
[365050468,1749427844634,-480.0,0.00018694,2]
[365050469,1749427844643,-480.0,0.00018694,2]
[365050471,1749427844653,-480.0,0.00018694,2]
[365050473,1749427844662,-420.0,0.00018694,2]
[365050475,1749427844671,-480.0,0.00018694,2]
[365050477,1749427844681,-809.76,0.00018694,2]
[365050479,1749427844690,-480.0,0.00018694,2]
[365050481,1749427844699,-480.0,0.00018694,2]
[365050483,1749427844709,-427.01640564,0.00018694,2]
[365050485,1749427844718,-512.13811039,0.00018694,2]
[365050487,1749427844728,-500.0,0.00018694,2]
[365050489,1749427844738,-480.0,0.00018694,2]
[365050491,1749427844750,-480.0,0.00018694,2]
[365050507,1749427844908,-480.0,0.00018694,2]
[365050509,1749427844918,-480.0,0.00018694,2]
[365050511,1749427844927,-480.0,0.00018694,2]
[365050513,1749427844937,-480.0,0.00018694,2]
[365050515,1749427844947,-480.0,0.00018694,2]
[365050517,1749427844956,-480.0,0.00018694,2]
[365050519,1749427844966,-480.0,0.00018694,2]
[365050521,1749427844975,-480.0,0.00018694,2]
[365050523,1749427844984,-480.0,0.00018694,2]
[365050525,1749427844994,-480.0,0.00018694,2]
[365050527,1749427845003,-480.0,0.00018694,2]
[365050529,1749427845012,-480.0,0.00018694,2]
[365050531,1749427845021,-480.0,0.00018694,2]
[365050533,1749427845031,-422.51984563,0.00018694,2]
[365050535,1749427845040,-480.0,0.00018694,2]
[365050537,1749427845049,-480.0,0.00018694,2]
[365050539,1749427845058,-480.0,0.00018694,2]
[365050541,1749427845067,-480.0,0.00018694,2]
[365050543,1749427845076,-480.0,0.00018694,2]
[365050545,1749427845086,-424.15927232,0.00018694,2]
[365050547,1749427845095,-480.0,0.00018694,2]
[365050549,1749427845104,-326.83705151,0.00018694,2]
[365050550,1749427845114,-480.0,0.00018694,2]
[365050552,1749427845123,-480.0,0.00018694,2]
[365050554,1749427845132,-480.0,0.00018694,2]
[365050556,1749427845141,-480.0,0.00018694,2]
[365050558,1749427845151,-480.0,0.00018694,2]
[365050560,1749427845161,-480.0,0.00018694,2]
[365050562,1749427845170,-585.97,0.00018694,2]
[365050564,1749427845179,-480.0,0.00018694,2]
[365050566,1749427845189,-480.0,0.00018694,2]
[365050568,1749427845198,-480.0,0.00018694,2]
[365050570,1749427845208,-866.26,0.00018694,2]
[365050572,1749427845218,-480.0,0.00018694,2]
[365050574,1749427845227,-428.49066823,0.00018694,2]
[365050576,1749427845237,-480.0,0.00018694,2]
[365050578,1749427845246,-559.86,0.00018694,2]
[365050580,1749427845255,-480.0,0.00018694,2]
[365050582,1749427845264,-480.0,0.00018694,2]
[365050583,1749427845273,-480.0,0.00018694,2]
[365050585,1749427845282,-480.0,0.00018694,2]
[365050587,1749427845291,-480.0,0.00018694,2]
[365050589,1749427845300,-480.0,0.00018694,2]
[365050591,1749427845310,-480.0,0.00018694,2]
[365050593,1749427845319,-505.14,0.00018694,2]
[365050595,1749427845328,-480.0,0.00018694,2]
[365050597,1749427845337,-480.0,0.00018694,2]
[365050599,1749427845346,-480.0,0.00018694,2]
[365050601,1749427845355,-480.0,0.00018694,2]
[365050603,1749427845365,-480.0,0.00018694,2]
[365050605,1749427845374,-480.0,0.00018694,2]
[365050607,1749427845384,-480.0,0.00018694,2]
[365050609,1749427845393,-480.0,0.00018694,2]
[365050611,1749427845402,-519.01,0.00018694,2]
[365050613,1749427845412,-1258.9,0.00018694,2]
[365050615,1749427845421,-480.0,0.00018694,2]
[365050617,1749427845430,-563.07,0.00018694,2]
[365050619,1749427845439,-631.72,0.00018694,2]
[365050621,1749427845448,-480.0,0.00018694,2]
[365050623,1749427845458,-487.95,0.00018694,2]
[365050624,1749427845467,-526.48,0.00018694,2]
[365050626,1749427845476,-895.53,0.00018694,2]
[365050629,1749427845486,-691.91,0.00018694,2]
[365050631,1749427845495,-1013.38,0.00018694,2]
[365050633,1749427845506,-480.0,0.00018694,2]
[365050635,1749427845515,-522.65,0.00018694,2]
[365050637,1749427845524,-480.0,0.00018694,2]
[365050639,1749427845533,-480.0,0.00018694,2]
[365050641,1749427845542,-644.32,0.00018694,2]
[365050643,1749427845551,-480.0,0.00018694,2]
[365050645,1749427845560,-551.92,0.00018694,2]
[365050647,1749427845569,-582.88,0.00018694,2]
[365050649,1749427845578,-480.0,0.00018694,2]
[365050651,1749427845587,-480.0,0.00018694,2]
[365050653,1749427845596,-480.0,0.00018694,2]
[365050655,1749427845605,-604.72003066,0.00018695,2]
[365050657,1749427845614,-480.0,0.00018695,2]
[365050658,1749427845624,-480.0,0.00018695,2]
[365050660,1749427845633,-480.0,0.00018695,2]
[365050662,1749427845642,-480.0,0.00018695,2]
[365050664,1749427845651,-480.0,0.00018695,2]
[365050666,1749427845661,-395.41039859,0.00018695,2]
[365050668,1749427845670,-480.0,0.00018695,2]
[365050670,1749427845679,-2322.43425576,0.00018762,2]
[365050672,1749427845689,-600.0,0.00018832,4]
[365050674,1749427845698,-600.0,0.00018832,4]
[365050676,1749427845707,-204.0,0.00018841,2]
[365050678,1749427845716,-199.09871322,0.00018849,2]
[365050680,1749427845725,-225.11555329,0.00018849,2]
[365050682,1749427845735,-268.07444786,0.00018849,2]
[365050684,1749427845744,-150.0,0.00018849,2]
[365050686,1749427845757,-182.03257943,0.00018849,2]
[365050688,1749427845766,-150.0,0.00018849,2]
[365050690,1749427845775,-184.67750071,0.00018849,2]
[365050692,1749427845785,-167.29959807,0.00018849,2]
[365050694,1749427845795,-256.88674697,0.00018849,2]
[365050696,1749427845804,-196.98272229,0.00018849,2]
[365050698,1749427845813,-153.11273198,0.00018849,2]
[365050700,1749427845822,-292.18588319,0.00018849,2]
[365050702,1749427845832,-480.0,0.00018858,2]
[365050704,1749427845842,-480.0,0.00018858,2]
[365050706,1749427845851,-480.0,0.00018858,2]
[365050708,1749427845860,-480.0,0.00018858,2]
[365050710,1749427845869,-480.0,0.00018858,2]
[365050711,1749427845879,-360.0,0.00018858,2]
[365050713,1749427845888,-480.0,0.00018858,2]
[365050715,1749427845897,-480.0,0.00018858,2]
[365050717,1749427845906,-480.0,0.00018858,2]
[365050719,1749427845915,-480.0,0.00018858,2]
[365050721,1749427845924,-480.0,0.00018858,2]
[365050723,1749427845934,-360.0,0.00018858,2]
[365050725,1749427845943,-480.0,0.00018858,2]
[365050727,1749427845953,-480.0,0.00018858,2]
[365050729,1749427845962,-480.0,0.00018858,2]
[365050731,1749427845971,-480.0,0.00018858,2]
[365050733,1749427845980,-480.0,0.00018858,2]
[365050735,1749427845989,-480.0,0.00018858,2]
[365050737,1749427845999,-859.25,0.00018858,2]
[365050739,1749427846010,-360.0,0.00018858,2]
[365050740,1749427846019,-480.0,0.00018858,2]
[365050742,1749427846028,-547.94765407,0.00018858,2]
[365050744,1749427846037,-480.0,0.00018858,2]
[365050746,1749427846046,-480.0,0.00018858,2]
[365050748,1749427846057,-480.0,0.00018858,2]
[365050750,1749427846066,-480.0,0.00018858,2]
[365050752,1749427846075,-480.0,0.00018858,2]
[365050754,1749427846086,-480.0,0.00018858,2]
[365050756,1749427846095,-391.12753281,0.00018858,2]
[365050758,1749427846104,-480.0,0.00018858,2]
[365050760,1749427846113,-480.0,0.00018858,2]
[365050762,1749427846123,-480.0,0.00018858,2]
[365050764,1749427846131,-480.0,0.00018858,2]
[365050766,1749427846141,-480.0,0.00018858,2]
[365050768,1749427846150,-591.44815284,0.00018858,2]
[365050770,1749427846159,-480.0,0.00018858,2]
[365050772,1749427846168,-480.0,0.00018858,2]
[365050774,1749427846177,-360.0,0.00018858,2]
[365050776,1749427846186,-480.0,0.00018858,2]
[365050778,1749427846195,-691.74,0.00018858,2]
[365050780,1749427846204,-480.0,0.00018858,2]
[365050782,1749427846213,-256.34,0.00018858,2]
[365050784,1749427846222,-480.0,0.00018858,2]
[365050785,1749427846231,-480.0,0.00018858,2]
[365050787,1749427846240,-480.0,0.00018858,2]
[365050789,1749427846249,-480.0,0.00018858,2]
[365050791,1749427846258,-1304.9,0.00018858,2]
[365050793,1749427846268,-480.0,0.00018858,2]
[365050795,1749427846277,-480.0,0.00018858,2]
[365050797,1749427846286,-480.0,0.00018858,2]
[365050799,1749427846295,-480.0,0.00018858,2]
[365050801,1749427846304,-480.0,0.00018858,2]
[365050803,1749427846314,-550.46,0.00018858,2]
[365050804,1749427846323,-480.0,0.00018858,2]
[365050806,1749427846333,-480.0,0.00018858,2]
[365050808,1749427846342,-480.0,0.00018858,2]
[365050810,1749427846352,-480.0,0.00018858,2]
[365050812,1749427846360,-480.0,0.00018858,2]
[365050814,1749427846369,-573.28,0.00018858,2]
[365050816,1749427846379,-846.62,0.00018858,2]
[365050818,1749427846388,-385.96960086,0.00018858,2]
[365050820,1749427846398,-480.0,0.00018858,2]
[365050822,1749427846406,-480.0,0.00018858,2]
[365050824,1749427846416,-480.0,0.00018858,2]
[365050826,1749427846425,-286.88081857,0.00018858,2]
[365050828,1749427846434,-480.0,0.00018858,2]
[365050830,1749427846443,-1165.27,0.00018858,2]
[365050832,1749427846453,-480.0,0.00018858,2]
[365050834,1749427846462,-480.0,0.00018858,2]
[365050836,1749427846471,-480.0,0.00018858,2]
[365050837,1749427846480,-480.0,0.00018858,2]
[365050839,1749427846489,-360.0,0.00018858,2]
[365050841,1749427846498,-371.74778297,0.00018858,2]
[365050843,1749427846508,-575.23,0.00018858,2]
[365050845,1749427846517,-599.95,0.00018858,2]
[365050847,1749427846526,-480.0,0.00018858,2]
[365050849,1749427846535,-480.0,0.00018858,2]
[365050851,1749427846544,-480.0,0.00018858,2]
[365050853,1749427846553,-480.0,0.00018858,2]
[365050855,1749427846562,-970.64,0.00018858,2]
[365050857,1749427846571,-480.0,0.00018858,2]
[365050858,1749427846582,-587.24,0.00018858,2]
[365050859,1749427846591,-480.0,0.00018858,2]
[365050860,1749427846600,-480.0,0.00018858,2]
[365050861,1749427846609,-283.16025333,0.00018858,2]
[365050862,1749427846618,-290.02235364,0.00018858,2]
[365050863,1749427846627,-480.0,0.00018858,2]
[365050864,1749427846636,-746.73,0.00018858,2]
[365050865,1749427846645,-480.0,0.00018858,2]
[365050866,1749427846654,-480.0,0.00018858,2]
[365050867,1749427846663,-480.0,0.00018858,2]
[365050868,1749427846672,-480.0,0.00018858,2]
[365050869,1749427846681,-480.0,0.00018858,2]
[365050871,1749427846691,-296.10493461,0.00018858,2]
[365050873,1749427846700,-499.38,0.00018858,2]
[365050875,1749427846709,-480.0,0.00018858,2]
[365050877,1749427846718,-480.0,0.00018858,2]
[365050879,1749427846727,-480.0,0.00018858,2]
[365050881,1749427846736,-480.0,0.00018858,2]
[365050883,1749427846747,-287.21410112,0.00018858,2]
[365050885,1749427846759,-480.0,0.00018858,2]
[365050887,1749427846768,-480.0,0.00018858,2]
[365050889,1749427846778,-363.26654527,0.00018858,2]
[365050890,1749427846787,-480.0,0.00018858,2]
[365050892,1749427846797,-371.37185655,0.00018858,2]
[365050894,1749427846807,-480.0,0.00018858,2]
[365050896,1749427846816,-480.0,0.00018858,2]
[365050898,1749427846826,-608.12,0.00018858,2]
[365050900,1749427846838,-480.0,0.00018858,2]
[365050902,1749427846847,-480.0,0.00018858,2]
[365050904,1749427846856,-480.0,0.00018858,2]
[365050906,1749427846865,-480.0,0.00018858,2]
[365050908,1749427846875,-480.0,0.00018858,2]
[365050910,1749427846885,-360.0,0.00018858,2]
[365050912,1749427846894,-480.0,0.00018858,2]
[365050914,1749427846903,-480.0,0.00018858,2]
[365050916,1749427846912,-480.0,0.00018858,2]
[365050918,1749427846921,-480.0,0.00018858,2]
[365050920,1749427846930,-480.0,0.00018858,2]
[365050922,1749427846941,-480.0,0.00018858,2]
[365050924,1749427846950,-480.0,0.00018858,2]
[365050926,1749427846959,-362.28761272,0.00018858,2]
[365050928,1749427846968,-480.0,0.00018858,2]
[365050930,1749427846977,-480.0,0.00018858,2]
[365050932,1749427846987,-480.0,0.00018858,2]
[365050934,1749427846996,-513.22325733,0.00018858,2]
[365050936,1749427847006,-366.96720733,0.00018858,2]
[365050938,1749427847015,-480.0,0.00018858,2]
[365050940,1749427847024,-480.0,0.00018858,2]
[365050942,1749427847033,-480.0,0.00018858,2]
[365050943,1749427847042,-480.0,0.00018858,2]
[365050945,1749427847051,-480.0,0.00018858,2]
[365050947,1749427847060,-480.0,0.00018858,2]
[365050949,1749427847069,-361.46069027,0.00018858,2]
[365050952,1749427847080,-364.12144588,0.00018858,2]
[365050953,1749427847089,-480.0,0.00018858,2]
[365050955,1749427847098,-313.06410187,0.00018858,2]
[365050958,1749427847108,-480.0,0.00018858,2]
[365050959,1749427847117,-480.0,0.00018858,2]
[365050961,1749427847126,-360.0,0.00018858,2]
[365050963,1749427847135,-541.18,0.00018858,2]
[365050965,1749427847144,-480.0,0.00018858,2]
[365050967,1749427847153,-480.0,0.00018858,2]
[365050969,1749427847163,-480.0,0.00018858,2]
[365050971,1749427847172,-480.0,0.00018858,2]
[365050973,1749427847182,-480.0,0.00018858,2]
[365050975,1749427847191,-480.0,0.00018858,2]
[365050977,1749427847200,-656.77,0.00018858,2]
[365050979,1749427847209,-480.0,0.00018858,2]
[365050981,1749427847218,-514.83,0.00018858,2]
[365050983,1749427847227,-480.0,0.00018858,2]
[365050985,1749427847236,-480.0,0.00018858,2]
[365050987,1749427847245,-480.0,0.00018858,2]
[365050989,1749427847255,-480.0,0.00018858,2]
[365050991,1749427847264,-480.0,0.00018858,2]
[365050993,1749427847273,-480.0,0.00018858,2]
[365050995,1749427847282,-480.0,0.00018858,2]
[365050997,1749427847291,-245.32626554,0.00018858,2]
[365050998,1749427847301,-480.0,0.00018858,2]
[365051000,1749427847310,-480.0,0.00018858,2]
[365051002,1749427847320,-320.0,0.00018858,2]
[365051004,1749427847330,-480.0,0.00018858,2]
[365051006,1749427847340,-369.35725593,0.00018858,2]
[365051008,1749427847349,-480.0,0.00018858,2]
[365051010,1749427847359,-480.0,0.00018858,2]
[365051012,1749427847370,-480.0,0.00018858,2]
[365051014,1749427847379,-480.0,0.00018858,2]
[365051016,1749427847389,-480.0,0.00018858,2]
[365051018,1749427847398,-480.0,0.00018858,2]
[365051020,1749427847407,-480.0,0.00018858,2]
[365051022,1749427847417,-1015.18,0.00018858,2]
[365051024,1749427847426,-480.0,0.00018858,2]
[365051026,1749427847435,-365.1485568,0.00018858,2]
[365051028,1749427847444,-480.0,0.00018858,2]
[365051030,1749427847453,-480.0,0.00018858,2]
[365051032,1749427847462,-510.48,0.00018858,2]
[365051034,1749427847472,-480.0,0.00018858,2]
[365051036,1749427847481,-480.0,0.00018858,2]
[365051038,1749427847490,-480.0,0.00018858,2]
[365051040,1749427847499,-549.87,0.00018858,2]
[365051042,1749427847508,-480.0,0.00018858,2]
[365051044,1749427847518,-370.24436818,0.00018858,2]
[365051046,1749427847527,-480.0,0.00018858,2]
[365051048,1749427847536,-480.0,0.00018858,2]
[365051049,1749427847545,-480.0,0.00018858,2]
[365051051,1749427847556,-480.0,0.00018858,2]
[365051053,1749427847565,-440.0,0.00018858,2]
[365051055,1749427847574,-480.0,0.00018858,2]
[365051057,1749427847584,-480.0,0.00018858,2]
[365051059,1749427847594,-480.0,0.00018858,2]
[365051061,1749427847603,-480.0,0.00018858,2]
[365051063,1749427847612,-480.0,0.00018858,2]
[365051065,1749427847621,-524.49,0.00018858,2]
[365051067,1749427847630,-480.0,0.00018858,2]
[365051069,1749427847639,-480.0,0.00018858,2]
[365051071,1749427847648,-480.0,0.00018858,2]
[365051073,1749427847657,-480.0,0.00018858,2]
[365051075,1749427847667,-480.0,0.00018858,2]
[365051077,1749427847676,-480.0,0.00018858,2]
[365051079,1749427847686,-522.38,0.00018858,2]
[365051081,1749427847695,-480.0,0.00018858,2]
[365051083,1749427847704,-480.0,0.00018858,2]
[365051085,1749427847714,-480.0,0.00018858,2]
[365051087,1749427847723,-480.0,0.00018858,2]
[365051088,1749427847732,-480.0,0.00018858,2]
[365051089,1749427847742,-480.0,0.00018858,2]
[365051095,1749427847895,-1024.3,0.00018858,2]
[365051096,1749427847905,-480.0,0.00018858,2]
[365051097,1749427847915,-480.0,0.00018858,2]
[365051098,1749427847925,-530.22,0.00018858,2]
[365051099,1749427847934,-480.0,0.00018858,2]
[365051100,1749427847944,-480.0,0.00018858,2]
[365051101,1749427847953,-480.0,0.00018858,2]
[365051102,1749427847964,-480.0,0.00018858,2]
[365051103,1749427847973,-616.56833494,0.00018858,2]
[365051104,1749427847983,-480.0,0.00018858,2]
[365051105,1749427847992,-507.75,0.00018858,2]
[365051106,1749427848002,-480.0,0.00018858,2]
[365051107,1749427848012,-480.0,0.00018858,2]
[365051108,1749427848022,-620.47,0.00018858,2]
[365051109,1749427848031,-480.0,0.00018858,2]
[365051110,1749427848041,-694.69,0.00018858,2]
[365051111,1749427848050,-757.81,0.00018858,2]
[365051112,1749427848060,-480.0,0.00018858,2]
[365051113,1749427848070,-480.0,0.00018858,2]
[365051114,1749427848079,-1907.22,0.00018858,2]
[365051115,1749427848089,-480.0,0.00018858,2]
[365051116,1749427848099,-731.25,0.00018858,2]
[365051117,1749427848108,-480.0,0.00018858,2]
[365051118,1749427848118,-1257.91,0.00018858,2]
[365051119,1749427848127,-480.0,0.00018858,2]
[365051120,1749427848137,-667.25,0.00018858,2]
[365051121,1749427848146,-480.0,0.00018858,2]
[365051122,1749427848156,-480.0,0.00018858,2]
[365051123,1749427848167,-480.0,0.00018858,2]
[365051124,1749427848176,-625.23,0.00018858,2]
[365051125,1749427848186,-480.0,0.00018858,2]
[365051126,1749427848196,-480.0,0.00018858,2]
[365051127,1749427848205,-584.97,0.00018858,2]
[365051128,1749427848215,-480.0,0.00018858,2]
[365051129,1749427848225,-665.04,0.00018858,2]
[365051130,1749427848234,-480.0,0.00018858,2]
[365051131,1749427848244,-922.23,0.00018858,2]
[365051132,1749427848254,-480.0,0.00018858,2]
[365051133,1749427848263,-480.0,0.00018858,2]
[365051134,1749427848274,-4762.67,0.00018858,2]
[365051135,1749427848283,-626.04,0.00018858,2]
[365051136,1749427848293,-480.0,0.00018858,2]
[365051137,1749427848302,-918.36,0.00018858,2]
[365051138,1749427848312,-480.0,0.00018858,2]
[365051139,1749427848323,-614.10231533,0.00018858,2]
[365051140,1749427848334,-556.85,0.00018858,2]
[365051141,1749427848344,-480.0,0.00018858,2]
[365051142,1749427848354,-516.91,0.00018858,2]
[365051143,1749427848363,-480.0,0.00018858,2]
[365051144,1749427848373,-480.0,0.00018858,2]
[365051145,1749427848383,-586.6661178,0.00018858,2]
[365051146,1749427848392,-480.0,0.00018858,2]
[365051147,1749427848401,-519.7240977,0.00018858,2]
[365051148,1749427848411,-634.6,0.00018858,2]
[365051149,1749427848420,-362.89988956,0.00018858,2]
[365051150,1749427848430,-480.0,0.00018858,2]
[365051151,1749427848439,-743.22,0.00018858,2]
[365051152,1749427848448,-480.0,0.00018858,2]
[365051153,1749427848457,-480.0,0.00018858,2]
[365051154,1749427848466,-875.91,0.00018858,2]
[365051155,1749427848476,-480.0,0.00018858,2]
[365051156,1749427848486,-589.96,0.00018858,2]
[365051157,1749427848495,-361.56144326,0.00018858,2]
[365051158,1749427848505,-480.0,0.00018858,2]
[365051159,1749427848515,-480.0,0.00018858,2]
[365051160,1749427848524,-480.0,0.00018858,2]
[365051161,1749427848534,-480.0,0.00018858,2]
[365051162,1749427848543,-480.0,0.00018858,2]
[365051163,1749427848552,-480.0,0.00018858,2]
[365051164,1749427848562,-480.0,0.00018858,2]
[365051165,1749427848571,-480.0,0.00018858,2]
[365051166,1749427848581,-1146.57,0.00018858,2]
[365051167,1749427848590,-480.0,0.00018858,2]
[365051168,1749427848600,-986.46,0.00018858,2]
[365051169,1749427848609,-480.0,0.00018858,2]
[365051170,1749427848619,-480.0,0.00018858,2]
[365051171,1749427848628,-480.0,0.00018858,2]
[365051172,1749427848637,-582.68,0.00018858,2]
[365051173,1749427848647,-954.83,0.00018858,2]
[365051174,1749427848656,-480.0,0.00018858,2]
[365051175,1749427848665,-364.34628312,0.00018858,2]
[365051176,1749427848674,-440.0,0.00018858,2]
[365051177,1749427848683,-480.0,0.00018858,2]
[365051178,1749427848692,-480.0,0.00018858,2]
[365051179,1749427848701,-480.0,0.00018858,2]
[365051180,1749427848711,-1075.19,0.00018858,2]
[365051181,1749427848720,-366.58770226,0.00018858,2]
[365051182,1749427848730,-480.0,0.00018858,2]
[365051183,1749427848739,-480.0,0.00018858,2]
[365051184,1749427848751,-663.56,0.00018858,2]
[365051185,1749427848762,-539.27427139,0.00018858,2]
[365051186,1749427848772,-367.26425321,0.00018858,2]
[365051187,1749427848782,-577.91,0.00018858,2]
[365051188,1749427848792,-984.98,0.00018858,2]
[365051189,1749427848802,-480.0,0.00018858,2]
[365051190,1749427848812,-686.31,0.00018858,2]
[365051191,1749427848821,-480.0,0.00018858,2]
[365051192,1749427848833,-1104.14,0.00018858,2]
[365051193,1749427848843,-480.0,0.00018858,2]
[365051194,1749427848852,-300.15170868,0.00018858,2]
[365051195,1749427848862,-480.0,0.00018858,2]
[365051196,1749427848871,-480.0,0.00018858,2]
[365051197,1749427848880,-480.0,0.00018858,2]
[365051198,1749427848890,-919.63,0.00018858,2]
[365051199,1749427848899,-575.12,0.00018858,2]
[365051200,1749427848908,-1497.65,0.00018858,2]
[365051201,1749427848917,-480.0,0.00018858,2]